bitfinex/quotes_SOLUSD_20250619
["timestamp","ask_amount","ask_price","bid_price","bid_amount"]
[1750307118027,4.89079522,146.13,146.1,23.95619437]
[1750307118234,4.89079522,146.12,146.1,23.95619437]
[1750307118436,5.10955241,146.14,146.1,23.95619437]
[1750307118629,4.89087561,146.13,146.1,6.84462696]
[1750307118942,4.89087561,146.12,146.1,6.84462696]
[1750307119137,4.88484051,146.11,146.1,6.84462696]
[1750307119444,4.88427422,146.11,146.1,6.84462696]
[1750307123859,4.88427422,146.11,146.08,6.84556407]
[1750307124027,31.10955241,146.14,146.08,6.84556407]
[1750307124223,4.87446083,146.13,146.08,6.84556407]
[1750307124528,4.87446083,146.12,146.08,6.84556407]
[1750307124728,4.87446083,146.11,146.08,6.84556407]
[1750307124922,30.87400511,146.1,146.06,6.84650143]
[1750307125133,4.87400511,146.09,146.06,6.84650143]
[1750307125347,26.0,146.1,146.06,6.84650143]
[1750307125529,4.87324219,146.09,146.06,6.84650143]
[1750307125728,4.87280523,146.08,146.05,12.64683923]
[1750307125958,26.0,146.09,146.04,6.84727339]
[1750307126128,30.87369654,146.08,146.04,6.84727339]
[1750307126339,26.0,146.08,146.04,6.84727339]
[1750307126763,4.87335661,146.07,146.04,6.84727339]
[1750307127061,26.0,146.08,146.04,6.84727339]
[1750307127250,4.87350983,146.07,146.04,6.84727339]
[1750307127567,26.0,146.08,146.04,6.84727339]
[1750307127860,4.87418201,146.07,146.04,6.84727339]
[1750307128088,26.0,146.07,146.04,6.84727339]
[1750307128242,26.0,146.07,146.03,23.13261885]
[1750307128243,4.88406334,146.06,146.03,23.13261885]
[1750307128443,26.0,146.07,146.03,23.13261885]
[1750307128444,4.88410283,146.05,146.03,23.13261885]
[1750307128752,26.0,146.07,146.03,23.13261885]
[1750307128943,4.88343955,146.06,146.03,23.13261885]
[1750307129135,4.88343955,146.05,146.03,23.13261885]
[1750307129458,26.0,146.07,146.03,23.13261885]
[1750307129647,4.88285369,146.06,146.03,23.13261885]
[1750307129845,4.88285369,146.05,146.03,23.13261885]
[1750307130043,26.0,146.07,146.03,23.13261885]
[1750307130257,4.88242142,146.06,146.03,23.13261885]
[1750307130464,4.88242142,146.05,146.03,23.13261885]
[1750307130636,26.0,146.07,146.03,23.13261885]
[1750307130836,4.88242244,146.06,146.03,23.13261885]
[1750307131037,4.88242244,146.05,146.03,23.13261885]
[1750307131262,26.0,146.07,146.03,23.13261885]
[1750307131452,4.88243103,146.06,146.03,23.13261885]
[1750307131652,4.88242792,146.05,146.03,23.13261885]
[1750307131855,26.0,146.07,146.03,23.13261885]
[1750307132045,4.88216604,146.06,146.03,23.13261885]
[1750307132238,4.88216478,146.05,146.03,23.13261885]
[1750307132438,26.0,146.07,146.03,23.13261885]
[1750307132659,4.88212031,146.06,146.03,23.13261885]
[1750307133166,4.88193858,146.05,146.03,16.28486588]
[1750307133338,6.84743905,146.04,146.03,16.28486588]
[1750307133751,6.84743905,146.04,146.01,0.05001766]
[1750307133752,26.0,146.02,146.01,0.05001766]
[1750307133945,30.88538826,146.02,146.01,0.05001766]
[1750307134340,26.0,146.02,146.01,0.05001766]
[1750307134852,30.8805038,146.02,146.01,0.05001766]
[1750307135359,26.0,146.02,146.01,0.05001766]
[1750307136147,30.87899395,146.02,146.01,0.05001766]
[1750307136343,30.87900221,146.02,146.01,0.05001766]
[1750307139271,30.87474947,146.02,146.01,0.05001766]
[1750307145397,26.0,146.02,146.01,0.05001766]
[1750307146859,30.87883266,146.02,146.01,0.05001766]
[1750307147381,26.0,146.02,146.01,0.05001766]
[1750307148983,30.90844344,146.02,146.01,0.05001766]
[1750307149360,26.0,146.02,146.01,0.05001766]
[1750307149560,30.90857946,146.02,146.01,0.05001766]
[1750307151470,4.90857946,146.02,146.01,0.05001766]
[1750307151671,6.84807636,146.03,146.01,0.05001766]
[1750307151876,11.75665582,146.03,146.01,0.05001766]
[1750307152072,6.84807636,146.03,146.01,0.05001766]
[1750307152273,11.7549615,146.03,146.01,0.05001766]
[1750307152499,6.84807636,146.03,146.01,0.05001766]
[1750307152659,11.7549615,146.03,146.01,0.05001766]
[1750307152859,6.84807636,146.03,146.01,0.05001766]
[1750307153080,26.0,146.02,146.01,0.05001766]
[1750307153361,30.9069302,146.02,146.01,0.05001766]
[1750307154781,37.75530713,146.02,146.01,0.05001766]
[1750307155895,37.75626888,146.02,146.01,0.05001766]
[1750307157691,37.75626888,146.02,145.97,1.4341586]
[1750307157878,4.90789195,146.01,145.97,1.4341586]
[1750307158187,26.0,146.0,145.97,1.4341586]
[1750307158376,26.0,145.98,145.97,1.4341586]
[1750307158688,30.90706548,145.98,145.97,1.4341586]
[1750307158858,26.0,146.0,145.97,1.4341586]
[1750307159061,1.6335,146.01,145.97,1.4341586]
[1750307159062,26.0,145.98,145.97,1.4341586]
[1750307159688,0.14216157,146.01,145.97,1.4341586]
[1750307159865,0.14216157,146.01,145.97,8.28477345]
[1750307160191,26.0,146.0,145.97,8.28477345]
[1750307160875,26.0,146.01,145.97,8.28477345]
[1750307161296,26.0,146.01,145.97,25.41158032]
[1750307161594,26.0,146.02,145.97,25.41158032]
[1750307161807,4.91089975,146.01,145.97,25.41158032]
[1750307161971,26.0,146.02,145.97,25.41158032]
[1750307162885,26.0,146.02,145.98,18.64964886]
[1750307163090,5.8,146.05,145.98,18.64964886]
[1750307163386,26.0,146.04,145.98,18.64964886]
[1750307163590,26.0,146.06,145.98,18.64964886]
[1750307163765,26.0,146.04,145.99,6.84978423]
[1750307164982,4.92153071,146.03,145.99,6.84978423]
[1750307165894,4.92153071,146.02,145.98,6.85025345]
[1750307166065,4.92153071,146.03,145.98,6.85025345]
[1750307166395,4.92153071,146.02,145.98,6.85025345]
[1750307166690,4.92153071,146.03,145.98,6.85025345]
[1750307166892,4.92153071,146.02,145.98,6.85025345]
[1750307167098,4.92153071,146.03,145.98,6.85025345]
[1750307167274,4.92054814,146.02,145.98,6.85025345]
[1750307167596,4.92054814,146.03,145.98,6.85025345]
[1750307167788,4.92054814,146.02,145.98,6.85025345]
[1750307167988,4.92054814,146.01,145.98,6.85025345]
[1750307168180,4.92054814,146.0,145.98,6.85025345]
[1750307168382,4.92054814,146.03,145.98,6.85025345]
[1750307168689,4.92054814,146.02,145.98,6.85025345]
[1750307168895,4.92054814,146.01,145.98,6.85025345]
[1750307169095,26.0,146.04,145.98,6.85025345]
[1750307169396,4.9281371,146.03,145.98,6.85025345]
[1750307169586,4.9281371,146.02,145.98,6.85025345]
[1750307169896,4.9281371,146.01,145.98,6.85025345]
[1750307170190,4.92842161,146.0,145.98,6.85025345]
[1750307170393,37.91693852,146.04,145.98,6.85025345]
[1750307170569,4.92907733,146.03,145.98,6.85025345]
[1750307170768,4.92907733,146.02,145.98,6.85025345]
[1750307170965,4.92907733,146.01,145.98,6.85025345]
[1750307171185,4.92907733,146.0,145.98,6.85025345]
[1750307171397,37.91693852,146.04,145.98,6.85025345]
[1750307171583,10.00193947,146.03,145.98,6.85025345]
[1750307171787,4.93244706,146.02,145.98,6.85025345]
[1750307171999,4.93244706,146.01,145.98,6.85025345]
[1750307172296,4.93244706,146.0,145.98,6.85025345]
[1750307172497,4.93244706,145.99,145.98,6.85025345]
[1750307173172,4.93861714,145.99,145.98,6.85025345]
[1750307173373,30.93861714,145.99,145.98,6.85025345]
[1750307176771,4.93861714,145.99,145.98,25.49990231]
[1750307176999,5.06949241,146.02,145.99,18.64964886]
[1750307177200,4.94713899,146.01,145.99,18.64964886]
[1750307177510,4.94713899,146.0,145.99,18.64964886]
[1750307178689,4.94713899,146.0,145.99,25.49943309]
[1750307181716,4.9273099,146.0,145.99,42.62389366]
[1750307183512,5.10945405,146.03,145.99,42.62389366]
[1750307183703,4.92645431,146.02,145.99,42.62389366]
[1750307183900,4.92645431,146.01,145.99,42.62389366]
[1750307184212,4.92645431,146.0,145.99,42.62389366]
[1750307184708,5.10945405,146.03,145.99,42.62389366]
[1750307184908,4.92240268,146.02,145.99,42.62389366]
[1750307185095,4.92240268,146.01,145.99,42.62389366]
[1750307185295,26.0,146.04,145.99,42.62389366]
[1750307185503,4.92186713,146.03,145.99,42.62389366]
[1750307185709,4.92186713,146.02,145.99,42.62389366]
[1750307185889,4.92186713,146.01,145.99,42.62389366]
[1750307186089,26.0,146.05,145.99,42.62389366]
[1750307186415,4.92160245,146.04,145.99,42.62389366]
[1750307186602,4.92160245,146.03,145.99,42.62389366]
[1750307186921,4.92160245,146.02,145.99,42.62389366]
[1750307187089,26.0,146.05,145.99,42.62389366]
[1750307187289,4.92034971,146.04,145.99,42.62389366]
[1750307187518,4.92034971,146.03,145.99,42.62389366]
[1750307187733,4.92034971,146.02,145.99,42.62389366]
[1750307187905,26.0,146.05,145.99,70.30389366]
[1750307188095,4.9189786,146.04,145.99,70.30389366]
[1750307188296,4.9189786,146.03,145.99,70.30389366]
[1750307188503,4.9189786,146.02,145.99,70.30389366]
[1750307188816,26.0,146.05,145.99,70.30389366]
[1750307188817,26.0,146.05,145.99,158.50389366]
[1750307189001,4.91812433,146.04,145.99,158.50389366]
[1750307189196,4.91812433,146.03,145.99,158.50389366]
[1750307189396,26.0,146.04,145.99,158.50389366]
[1750307189597,4.9181262,146.03,145.99,158.50389366]
[1750307189815,26.0,146.06,145.99,158.50389366]
[1750307190004,4.91650454,146.05,145.99,158.50389366]
[1750307190208,4.91650454,146.04,145.99,158.50389366]
[1750307190403,4.91650454,146.03,145.99,158.50389366]
[1750307190618,26.0,146.04,145.99,158.50389366]
[1750307190817,4.91607316,146.03,145.99,130.82389366]
[1750307190987,26.0,146.06,145.99,158.50389366]
[1750307191187,4.91522386,146.05,145.99,158.50389366]
[1750307191497,4.91522386,146.04,145.99,158.50389366]
[1750307191697,4.91522386,146.03,145.99,158.50389366]
[1750307191914,26.0,146.04,145.99,158.50389366]
[1750307192096,4.91407986,146.03,145.99,158.50389366]
[1750307192298,26.0,146.06,145.99,158.50389366]
[1750307192501,4.91359826,146.05,145.99,158.50389366]
[1750307192699,4.91359826,146.04,145.99,158.50389366]
[1750307192900,26.0,146.06,145.99,158.50389366]
[1750307193216,30.91314126,146.05,145.99,122.72978423]
[1750307193415,26.0,146.03,145.99,95.04978423]
[1750307193606,4.91215451,146.02,145.99,6.84978423]
[1750307193922,4.91215451,146.01,145.99,6.84978423]
[1750307194221,26.0,146.03,145.99,6.84978423]
[1750307194522,4.91260642,146.02,145.99,6.84978423]
[1750307194825,4.91260642,146.01,145.99,6.84978423]
[1750307195116,26.0,146.03,145.99,6.84978423]
[1750307195420,4.91281353,146.02,145.99,6.84978423]
[1750307195618,4.91346943,146.01,145.99,6.84978423]
[1750307195823,26.0,146.03,145.99,6.84978423]
[1750307197622,26.0,146.04,145.99,6.84978423]
[1750307200024,26.0,146.06,145.99,23.9742448]
[1750307200321,26.0,146.05,145.99,23.9742448]
[1750307201610,1.5446,146.07,145.99,23.9742448]
[1750307202429,26.0,146.04,145.99,23.9742448]
[1750307206312,31.10592562,146.04,145.99,23.9742448]
[1750307206621,5.10592562,146.03,145.99,23.9742448]
[1750307211129,31.10292545,146.03,145.99,23.9742448]
[1750307211443,26.0,146.02,145.99,23.9742448]
[1750307212247,26.0,146.02,145.99,6.84978423]
[1750307212925,26.0,146.01,145.99,6.84978423]
[1750307216949,31.10275667,146.01,145.99,6.84978423]
[1750307217255,31.10275667,146.01,145.97,1.4341586]
[1750307217256,26.0,146.01,145.97,1.4341586]
[1750307217428,26.0,145.99,145.97,8.28469993]
[1750307221827,26.0,146.01,145.97,8.28469993]
[1750307222162,5.10359707,146.0,145.97,8.28469993]
[1750307222565,5.10359707,146.0,145.97,25.4115068]
[1750307222864,26.0,146.01,145.97,25.4115068]
[1750307224761,26.0,146.03,145.98,18.64964886]
[1750307224972,26.0,146.02,145.98,134.50964886]
[1750307225180,26.0,146.04,145.98,134.50964886]
[1750307225563,26.0,146.04,145.99,23.9742448]
[1750307225762,26.0,146.05,145.99,23.9742448]
[1750307225990,5.09883574,146.04,145.99,23.9742448]
[1750307226158,26.0,146.05,145.99,23.9742448]
[1750307226454,5.09886032,146.04,145.99,23.9742448]
[1750307226658,26.0,146.05,145.99,23.9742448]
[1750307226864,5.0984651,146.04,145.99,23.9742448]
[1750307227050,26.0,146.05,145.99,23.9742448]
[1750307227251,5.09846477,146.04,145.99,23.9742448]
[1750307227559,26.0,146.05,145.99,23.9742448]
[1750307227755,5.09794503,146.04,145.99,23.9742448]
[1750307227968,26.0,146.05,145.99,23.9742448]
[1750307228166,5.09794503,146.04,145.99,23.9742448]
[1750307228368,26.0,146.05,145.99,23.9742448]
[1750307228572,5.09774688,146.04,145.99,23.9742448]
[1750307229370,5.09774688,146.04,146.01,6.84884596]
[1750307232306,26.0,146.05,146.01,6.84884596]
[1750307232509,5.09722312,146.04,146.01,6.84884596]
[1750307233199,26.0,146.05,146.01,6.84884596]
[1750307233501,5.09736678,146.04,146.01,6.84884596]
[1750307233684,26.0,146.05,146.01,6.84884596]
[1750307233887,5.09737117,146.04,146.01,6.84884596]
[1750307234709,5.09737117,146.04,146.01,23.97096088]
[1750307242322,26.0,146.05,146.01,23.97096088]
[1750307242697,5.09789991,146.04,146.01,23.97096088]
[1750307242897,26.0,146.05,146.01,23.97096088]
[1750307243120,5.09772254,146.04,146.01,23.97096088]
[1750307243325,26.0,146.02,146.01,23.97096088]
[1750307244116,30.90227189,146.02,146.01,23.97096088]
[1750307244318,4.90227189,146.02,146.01,23.97096088]
[1750307244520,30.90227189,146.02,146.01,23.97096088]
[1750307244926,4.90211631,146.02,146.01,23.97096088]
[1750307245225,30.90211631,146.02,146.01,23.97096088]
[1750307245734,4.90211631,146.02,146.01,23.97096088]
[1750307245911,30.90211631,146.02,146.01,23.97096088]
[1750307247122,4.90211631,146.02,146.01,6.84884596]
[1750307247297,30.90211631,146.02,146.01,6.84884596]
[1750307247720,30.90100574,146.02,146.01,6.84884596]
[1750307247921,35.99783424,146.02,146.01,6.84884596]
[1750307248227,30.90100574,146.02,146.01,6.84884596]
[1750307248818,35.99783424,146.02,146.01,6.84884596]
[1750307248999,30.90100574,146.02,146.01,6.84884596]
[1750307249322,26.0,146.01,146.0,6.84931506]
[1750307249522,30.90100574,146.01,146.0,6.84931506]
[1750307250422,4.90100574,146.01,145.99,23.97420594]
[1750307250613,26.0,146.01,145.99,23.97420594]
[1750307251302,26.0,146.02,145.99,23.97420594]
[1750307251517,30.90290394,146.01,145.99,23.97420594]
[1750307251713,26.0,146.01,145.99,23.97420594]
[1750307252110,26.0,146.02,145.99,23.97420594]
[1750307252330,30.90259187,146.01,145.99,23.97420594]
[1750307252507,26.0,146.01,145.99,23.97420594]
[1750307252915,26.0,146.02,145.99,23.97420594]
[1750307253119,30.90244733,146.01,145.99,23.97420594]
[1750307253317,26.0,146.01,145.99,23.97420594]
[1750307253708,26.0,146.02,145.99,23.97420594]
[1750307254027,30.90242637,146.01,145.99,23.97420594]
[1750307254228,26.0,146.01,145.99,23.97420594]
[1750307254613,26.0,146.02,145.99,23.97420594]
[1750307254813,30.90381894,146.01,145.99,23.97420594]
[1750307255014,26.0,146.01,145.99,23.97420594]
[1750307255421,26.0,146.02,145.99,23.97420594]
[1750307255621,30.90401629,146.01,145.99,23.97420594]
[1750307255929,26.0,146.01,145.99,23.97420594]
[1750307256415,26.0,146.02,145.99,23.97420594]
[1750307256616,30.90397812,146.01,145.99,23.97420594]
[1750307256807,26.0,146.01,145.99,23.97420594]
[1750307257221,26.0,146.02,145.99,23.97420594]
[1750307257527,30.90375711,146.01,145.99,23.97420594]
[1750307257729,26.0,146.01,145.99,6.84978423]
[1750307263731,26.0,146.02,145.99,23.9742448]
[1750307263931,30.90713086,146.01,145.99,23.9742448]
[1750307264132,26.0,146.01,145.99,23.9742448]
[1750307265031,31.09976817,146.02,145.99,23.9742448]
[1750307265225,4.90814761,146.01,145.99,23.9742448]
[1750307265537,26.0,146.02,145.99,23.9742448]
[1750307265711,4.90822613,146.01,145.99,23.9742448]
[1750307265908,26.0,146.02,145.99,23.9742448]
[1750307266111,4.91003283,146.01,145.99,23.9742448]
[1750307266412,4.91003283,146.0,145.99,42.62389366]
[1750307267637,26.0,146.02,145.99,23.9742448]
[1750307267818,4.91212183,146.01,145.99,23.9742448]
[1750307268019,4.91212183,146.0,145.99,23.9742448]
[1750307270541,4.91472032,146.0,145.99,23.9742448]
[1750307271926,26.0,146.02,145.99,23.9742448]
[1750307272126,4.91447654,146.01,145.99,23.9742448]
[1750307272341,4.91447654,146.0,145.99,23.9742448]
[1750307273245,4.91447654,146.0,145.99,17.12446057]
[1750307274247,4.91447654,146.0,145.99,23.9742448]
[1750307276336,4.91851266,146.0,145.99,23.9742448]
[1750307279223,4.91809272,146.0,145.99,23.9742448]
[1750307281864,4.91880036,146.0,145.99,23.9742448]
[1750307283474,4.91880036,146.0,145.99,6.84978423]
[1750307284176,26.0,145.99,145.98,6.85007963]
[1750307284343,30.91880036,145.99,145.98,6.85007963]
[1750307284544,30.92092812,145.99,145.98,6.85007963]
[1750307285054,6.3813,146.05,145.99,18.64964886]
[1750307285055,31.10657523,146.02,145.99,18.64964886]
[1750307285253,4.92169479,146.01,145.99,18.64964886]
[1750307285579,4.92169479,146.0,145.99,18.64964886]
[1750307287182,4.92169479,146.0,145.99,25.49943309]
[1750307287368,4.92212768,146.0,145.99,25.49943309]
[1750307290257,4.92473931,146.0,145.99,25.49943309]
[1750307295968,4.92723272,146.0,145.99,42.62389366]
[1750307298299,4.92723272,146.0,145.99,130.82389366]
[1750307301796,4.92305075,146.0,145.99,130.82389366]
[1750307302364,4.92305075,146.0,145.99,158.46389366]
[1750307304384,4.92305075,146.0,145.99,6.84978423]
[1750307304583,36.0300666,146.0,145.99,6.84978423]
[1750307304882,31.10701585,146.0,145.99,6.84978423]
[1750307305092,36.02518878,146.0,145.99,6.84978423]
[1750307305260,36.02518878,146.0,145.98,6.85006455]
[1750307305581,36.02518878,146.0,145.97,8.28474553]
[1750307305582,10.02518878,145.99,145.97,8.28474553]
[1750307305756,30.91817293,145.98,145.97,8.28474553]
[1750307306159,30.91252325,145.98,145.97,8.28474553]
[1750307306980,4.91252325,145.98,145.97,8.28474553]
[1750307307190,10.01473214,145.98,145.97,8.28474553]
[1750307307492,4.91252325,145.98,145.97,8.28474553]
[1750307309787,4.91252325,145.98,145.97,26.93439439]
[1750307310172,4.91619281,145.98,145.97,26.93439439]
[1750307310378,4.91621803,145.98,145.97,26.93439439]
[1750307310579,26.0,145.99,145.97,26.93439439]
[1750307315503,4.91081155,145.98,145.97,26.93439439]
[1750307315703,4.91088728,145.98,145.97,26.93439439]
[1750307318591,4.90759565,145.98,145.97,26.93439439]
[1750307321211,4.90759565,145.98,145.97,8.28474553]
[1750307321393,26.0,145.99,145.97,8.28474553]
[1750307321713,4.90622643,145.98,145.97,8.28474553]
[1750307324387,4.90478516,145.98,145.97,8.28474553]
[1750307324887,26.0,145.99,145.97,8.28474553]
[1750307327821,5.09863134,146.02,145.98,18.64964886]
[1750307327990,4.90745994,146.01,145.98,134.48964886]
[1750307328313,5.09863134,146.05,145.98,134.48964886]
[1750307328490,10.00644833,146.04,145.98,134.48964886]
[1750307328790,4.90781699,146.03,145.98,134.48964886]
[1750307328983,4.90781699,146.02,145.98,134.48964886]
[1750307329211,5.09863134,146.04,145.98,134.48964886]
[1750307329417,4.9085265,146.03,145.98,134.48964886]
[1750307329616,4.9085265,146.02,145.98,134.48964886]
[1750307329801,31.09863134,146.05,145.98,134.48964886]
[1750307330000,4.90876611,146.04,146.0,18.64964886]
[1750307330196,4.90876611,146.03,146.0,46.28964886]
[1750307330504,31.09863134,146.05,146.0,46.28964886]
[1750307330710,4.9085872,146.04,146.0,46.28964886]
[1750307330899,4.9085872,146.03,146.0,46.28964886]
[1750307331098,31.09863134,146.05,146.01,6.84884596]
[1750307331299,4.9073985,146.04,146.01,6.84884596]
[1750307331509,31.09863134,146.05,146.01,6.84884596]
[1750307331714,4.90736394,146.04,146.01,6.84884596]
[1750307332017,4.90736394,146.03,146.01,6.84884596]
[1750307332202,31.09863134,146.05,146.01,6.84884596]
[1750307332402,4.90733977,146.04,146.01,6.84884596]
[1750307332610,4.90733977,146.03,146.01,6.84884596]
[1750307332791,31.09863134,146.05,146.01,6.84884596]
[1750307332993,4.90709107,146.04,146.01,6.84884596]
[1750307333217,31.09863134,146.05,146.01,6.84884596]
[1750307333218,4.90709107,146.03,146.01,6.84884596]
[1750307333408,4.90709107,146.02,146.01,6.84884596]
[1750307333796,5.09863134,146.04,146.01,6.84884596]
[1750307334018,4.90617979,146.03,146.01,6.84884596]
[1750307334217,4.9060594,146.02,146.01,6.84884596]
[1750307338795,26.0,146.01,145.99,6.84978423]
[1750307341915,5.09863134,146.04,146.0,18.64964886]
[1750307342096,30.88964968,146.03,146.0,18.64964886]
[1750307342306,26.0,146.03,146.01,27.64]
[1750307343103,26.0,146.03,146.02,6.84837693]
[1750307343625,26.0,146.04,146.02,6.84837693]
[1750307346728,26.0,146.03,146.02,6.84837693]
[1750307347231,30.88708054,146.03,146.02,6.84837693]
[1750307347608,26.0,146.03,146.02,6.84837693]
[1750307349146,30.88767428,146.03,146.02,6.84837693]
[1750307349311,26.0,146.02,145.99,121.64]
[1750307349639,26.0,146.03,145.99,121.64]
[1750307349839,30.8878133,146.02,145.99,121.64]
[1750307350010,26.0,146.02,145.99,121.64]
[1750307350210,26.0,146.02,145.99,94.0]
[1750307350627,26.0,146.02,146.0,6.84931506]
[1750307352213,26.0,146.03,146.0,6.84931506]
[1750307352412,30.88494588,146.02,146.0,6.84931506]
[1750307352713,26.0,146.02,146.0,6.84931506]
[1750307353213,26.0,146.03,146.0,6.84931506]
[1750307353415,30.88902909,146.02,146.0,6.84931506]
[1750307353626,26.0,146.02,146.0,6.84931506]
[1750307354047,4.88986779,146.01,146.0,6.84931506]
[1750307355345,4.88990579,146.01,146.0,6.84931506]
[1750307355513,26.0,146.02,146.0,6.84931506]
[1750307357353,26.0,146.03,146.0,6.84931506]
[1750307358317,26.0,146.02,146.0,6.84931506]
[1750307359245,26.0,146.03,146.0,6.84931506]
[1750307360344,26.0,146.02,146.0,6.84931506]
[1750307361037,26.0,146.03,146.0,6.84931506]
[1750307361341,26.0,146.02,146.0,6.84931506]
[1750307363746,26.0,146.02,145.99,42.62389366]
[1750307365830,4.88731781,146.01,145.99,6.84978423]
[1750307366022,4.88806359,146.0,145.99,6.84978423]
[1750307366719,4.88776214,146.0,145.99,6.84978423]
[1750307367138,4.88776214,146.0,145.98,6.85025345]
[1750307367336,4.88776214,145.99,145.98,6.85025345]
[1750307371244,30.88776214,145.99,145.98,6.85025345]
[1750307373054,30.88776214,145.99,145.97,1.4341586]
[1750307373055,26.0,145.98,145.97,1.4341586]
[1750307373258,37.592835,145.98,145.97,1.4341586]
[1750307373556,32.50306214,145.98,145.97,1.4341586]
[1750307373741,37.592835,145.98,145.97,1.4341586]
[1750307375038,37.59373036,145.98,145.97,1.4341586]
[1750307375465,32.5039575,145.98,145.97,1.4341586]
[1750307376157,4.8886575,145.98,145.97,8.28488135]
[1750307376538,30.8886575,145.98,145.97,8.28488135]
[1750307376761,4.8849839,145.98,145.97,8.28488135]
[1750307377261,26.0,145.98,145.97,8.28488135]
[1750307378960,30.88367192,145.98,145.97,1.4341586]
[1750307379434,30.88367192,145.98,145.97,8.28488135]
[1750307379635,30.88367192,145.98,145.97,1.4341586]
[1750307380855,30.88631044,145.98,145.97,1.4341586]
[1750307389268,4.88631044,145.98,145.97,1.4341586]
[1750307389463,37.73656389,145.98,145.97,1.4341586]
[1750307389662,4.88631044,145.98,145.97,1.4341586]
[1750307391996,6.84998628,145.99,145.97,1.4341586]
[1750307392202,4.884302,145.98,145.97,1.4341586]
[1750307392505,30.884302,145.98,145.97,1.4341586]
[1750307395082,30.88854929,145.98,145.97,1.4341586]
[1750307396076,30.88881867,145.98,145.97,1.4341586]
[1750307397171,30.88881867,145.98,145.97,8.28488135]
[1750307397491,30.88881867,145.98,145.97,1.4341586]
[1750307397789,30.88881867,145.98,145.97,8.28488135]
[1750307400486,26.0,145.98,145.97,8.28488135]
[1750307400790,30.9217092,145.98,145.97,8.28488135]
[1750307404709,30.9217092,145.98,145.97,1.4341586]
[1750307406008,26.0,145.98,145.97,1.4341586]
[1750307406310,30.92658104,145.98,145.97,1.4341586]
[1750307408685,4.92658104,145.98,145.97,1.4341586]
[1750307408891,30.93124636,145.98,145.97,1.4341586]
[1750307409197,4.93124636,145.98,145.97,1.4341586]
[1750307409506,36.02101922,145.98,145.97,1.4341586]
[1750307409682,30.93124636,145.98,145.97,1.4341586]
[1750307410001,36.02101922,145.98,145.97,1.4341586]
[1750307410304,30.93124636,145.98,145.97,1.4341586]
[1750307410481,10.02101922,145.98,145.97,1.4341586]
[1750307410799,4.93124636,145.98,145.97,1.4341586]
[1750307410999,10.02101922,145.98,145.97,1.4341586]
[1750307411583,4.93124636,145.98,145.97,1.4341586]
[1750307411899,10.02101922,145.98,145.97,1.4341586]
[1750307412101,4.93124636,145.98,145.97,1.4341586]
[1750307412404,10.02101922,145.98,145.97,1.4341586]
[1750307417101,10.02101922,145.98,145.97,0.04159664]
[1750307417288,16.87127267,145.98,145.97,0.04159664]
[1750307418011,17.01343424,145.98,145.97,0.00138022]
[1750307418215,26.0,145.95,145.92,33.0247223]
[1750307418393,18.53363424,145.98,145.92,33.0247223]
[1750307418394,10.02101922,145.94,145.92,39.87777649]
[1750307418599,30.93124636,145.93,145.92,33.0247223]
[1750307419006,4.93124636,145.93,145.92,39.87779247]
[1750307419414,4.92097769,145.93,145.92,39.87779247]
[1750307419701,4.92097769,145.93,145.92,33.0247223]
[1750307420198,4.91873616,145.93,145.92,33.0247223]
[1750307420404,10.00632775,145.93,145.92,33.0247223]
[1750307422902,17.00108988,145.93,145.92,33.0247223]
[1750307423100,11.91349829,145.93,145.92,33.0247223]
[1750307423403,11.91349829,145.93,145.92,16.31421348]
[1750307423601,17.00108988,145.93,145.92,16.31421348]
[1750307424021,17.00108988,145.93,145.87,6.85524222]
[1750307424323,26.0,145.89,145.86,6.8558892]
[1750307424702,4.92494847,145.88,145.86,6.8558892]
[1750307425013,26.0,145.89,145.86,6.8558892]
[1750307425207,4.92403568,145.88,145.85,6.85625869]
[1750307425410,26.0,145.89,145.85,6.85625869]
[1750307425616,4.91795685,145.88,145.85,6.85625869]
[1750307425829,26.0,145.89,145.85,6.85625869]
[1750307426005,4.91729798,145.88,145.85,6.85625869]
[1750307426208,6.85379884,145.91,145.85,6.85625869]
[1750307426423,26.0,145.88,145.85,6.85625869]
[1750307431122,4.88994127,145.87,145.85,6.85625869]
[1750307431714,26.0,145.88,145.85,6.85625869]
[1750307432522,26.0,145.88,145.84,6.8568294]
[1750307432723,26.0,145.88,145.82,6.85776985]
[1750307432724,4.88584572,145.87,145.82,6.85776985]
[1750307432919,4.88586371,145.87,145.82,6.85776985]
[1750307433126,30.88586371,145.87,145.82,6.85776985]
[1750307433323,26.0,145.85,145.82,6.85776985]
[1750307434034,26.0,145.87,145.82,6.85776985]
[1750307434645,26.0,145.87,145.82,24.00219448]
[1750307434816,26.0,145.87,145.83,18.64964886]